bitfinex/quotes_BTCUSD_20241004
["timestamp","ask_amount","ask_price","bid_price","bid_amount"]
[1728079090968,5.55954133,62439.0,62438.0,0.000821]
[1728079091444,5.73572804,62439.0,62438.0,0.000821]
[1728079091684,5.72272804,62439.0,62438.0,0.000821]
[1728079092686,5.73372804,62439.0,62438.0,0.000821]
[1728079093158,5.73572804,62439.0,62438.0,0.000821]
[1728079093621,5.74772804,62439.0,62438.0,0.000821]
[1728079097277,5.58454133,62439.0,62438.0,0.000821]
[1728079097513,5.53883164,62439.0,62438.0,0.000821]
[1728079099169,5.51920074,62439.0,62438.0,0.000821]
[1728079100338,5.49408321,62439.0,62438.0,0.000821]
[1728079101571,5.54226853,62439.0,62438.0,0.000821]
[1728079103503,5.70545524,62439.0,62438.0,0.000821]
[1728079103768,5.45126853,62439.0,62438.0,0.000821]
[1728079107744,5.47638642,62439.0,62438.0,0.000821]
[1728079113595,5.57548642,62439.0,62438.0,0.000821]
[1728079114505,5.55036853,62439.0,62438.0,0.000821]
[1728079116768,5.73808271,62439.0,62438.0,0.000821]
[1728079117225,0.68808271,62439.0,62438.0,0.000821]
[1728079117446,5.68989739,62439.0,62438.0,0.000821]
[1728079117668,5.5754868,62439.0,62438.0,0.000821]
[1728079117917,5.55036853,62439.0,62438.0,0.000821]
[1728079122491,5.57548686,62439.0,62438.0,0.000821]
[1728079125431,5.55036853,62439.0,62438.0,0.000821]
[1728079125644,5.57548688,62439.0,62438.0,0.000821]
[1728079126675,5.55036853,62439.0,62438.0,0.000821]
[1728079129881,5.73867355,62439.0,62438.0,0.000821]
[1728079130994,5.71355524,62439.0,62438.0,0.000821]
[1728079132287,5.64638449,62439.0,62438.0,0.000821]
[1728079132721,5.54728449,62439.0,62438.0,0.000821]
[1728079133196,5.54728449,62439.0,62438.0,0.081221]
[1728079136317,5.63758449,62439.0,62438.0,0.000821]
[1728079136561,5.89382973,62439.0,62438.0,0.000821]
[1728079137238,5.88182973,62439.0,62438.0,0.000821]
[1728079137693,5.88282973,62439.0,62438.0,0.000821]
[1728079137938,5.89682973,62439.0,62438.0,0.000821]
[1728079138176,5.88282973,62439.0,62438.0,0.000821]
[1728079138431,5.89682973,62439.0,62438.0,0.000821]
[1728079138687,5.92194896,62439.0,62438.0,0.000821]
[1728079138937,5.90794896,62439.0,62438.0,0.000821]
[1728079139175,5.92194896,62439.0,62438.0,0.000821]
[1728079139385,5.90794896,62439.0,62438.0,0.000821]
[1728079139604,5.92194896,62439.0,62438.0,0.000821]
[1728079139827,5.89682973,62439.0,62438.0,0.000821]
[1728079140275,5.88282973,62439.0,62438.0,0.000821]
[1728079140489,5.89682973,62439.0,62438.0,0.000821]
[1728079142111,0.184184,62428.0,62427.0,0.000821]
[1728079142334,5.43099707,62428.0,62427.0,0.000821]
[1728079142556,5.49713787,62428.0,62427.0,0.000821]
[1728079142776,5.54658789,62428.0,62427.0,0.000821]
[1728079143222,5.547385,62428.0,62427.0,0.000821]
[1728079143432,5.550385,62428.0,62427.0,0.000821]
[1728079143861,5.547385,62428.0,62427.0,0.000821]
[1728079144076,5.561385,62428.0,62427.0,0.000821]
[1728079144289,5.560385,62428.0,62427.0,0.000821]
[1728079144493,5.72213297,62428.0,62427.0,0.000821]
[1728079144708,5.73613297,62428.0,62427.0,0.000821]
[1728079145351,5.7979099,62428.0,62427.0,0.000821]
[1728079146420,5.63616193,62428.0,62427.0,0.000821]
[1728079147080,5.61103989,62428.0,62427.0,0.000821]
[1728079150104,5.63616231,62428.0,62427.0,0.000821]
[1728079151633,5.61103989,62428.0,62427.0,0.000821]
[1728079152917,5.70313989,62428.0,62427.0,0.000821]
[1728079154669,5.72826278,62428.0,62427.0,0.000821]
[1728079156062,5.70313989,62428.0,62427.0,0.000821]
[1728079157717,5.64136296,62428.0,62427.0,0.000821]
[1728079158398,5.64136296,62428.0,62427.0,0.094321]
[1728079158399,4.25844989,62428.0,62427.0,0.094321]
[1728079158613,4.25844989,62428.0,62427.0,0.169521]
[1728079158614,3.92246585,62428.0,62427.0,0.169521]
[1728079158835,2.63246585,62428.0,62427.0,0.169521]
[1728079159066,2.65758666,62428.0,62427.0,0.169521]
[1728079159292,2.64558666,62428.0,62427.0,0.169521]
[1728079159718,2.63858666,62428.0,62427.0,0.169521]
[1728079159932,2.66058666,62428.0,62427.0,0.169521]
[1728079160136,2.66858666,62428.0,62427.0,0.169521]
[1728079160381,2.62040134,62428.0,62427.0,0.169521]
[1728079161273,2.62140134,62428.0,62427.0,0.169521]
[1728079163467,2.62140134,62428.0,62427.0,0.076021]
[1728079164308,2.59628053,62428.0,62427.0,0.076021]
[1728079167197,2.59528053,62428.0,62427.0,0.076021]
[1728079167417,4.84240174,62428.0,62427.0,0.076021]
[1728079167655,4.89058706,62428.0,62427.0,0.076021]
[1728079167903,4.32158706,62428.0,62427.0,0.076021]
[1728079169316,4.29646585,62428.0,62427.0,0.076021]
[1728079170653,4.29746585,62428.0,62427.0,0.076021]
[1728079171064,4.24946585,62428.0,62427.0,0.076021]
[1728079172877,4.25026296,62428.0,62427.0,0.076021]
[1728079173543,4.24946585,62428.0,62427.0,0.076021]
[1728079174435,4.24846585,62428.0,62427.0,0.076021]
[1728079174658,4.24946585,62428.0,62427.0,0.076021]
[1728079178152,4.2745871,62428.0,62427.0,0.076021]
[1728079179430,4.43777381,62428.0,62427.0,0.076021]
[1728079179928,4.2735871,62428.0,62427.0,0.076021]
[1728079180160,3.9135871,62428.0,62427.0,0.076021]
[1728079180375,3.8625871,62428.0,62427.0,0.076021]
[1728079181843,0.5105871,62428.0,62427.0,0.076021]
[1728079182050,0.46240178,62428.0,62427.0,0.076021]
[1728079182496,3.99428053,62428.0,62427.0,0.076021]
[1728079182715,4.04246585,62428.0,62427.0,0.076021]
[1728079183591,4.20415543,62428.0,62427.0,0.076021]
[1728079183793,4.20595254,62428.0,62427.0,0.076021]
[1728079184630,4.20595254,62428.0,62427.0,0.000821]
[1728079185086,4.36913925,62428.0,62427.0,0.000821]
[1728079185751,4.30734967,62428.0,62427.0,0.000821]
[1728079186922,4.33247181,62428.0,62427.0,0.000821]
[1728079187883,4.1692851,62428.0,62427.0,0.000821]
[1728079188105,4.16913615,62428.0,62427.0,0.000821]
[1728079188327,4.16813615,62428.0,62427.0,0.000821]
[1728079188767,4.16913615,62428.0,62427.0,0.000821]
[1728079189935,4.16813615,62428.0,62427.0,0.000821]
[1728079190162,4.16993326,62428.0,62427.0,0.000821]
[1728079190371,4.16813615,62428.0,62427.0,0.000821]
[1728079191037,4.07212019,62428.0,62427.0,0.000821]
[1728079191258,4.06823615,62428.0,62427.0,0.000821]
[1728079191472,3.13623615,62428.0,62427.0,0.080421]
[1728079191695,3.11111401,62428.0,62427.0,0.080421]
[1728079192835,0.48611401,62428.0,62427.0,0.080421]
[1728079193043,4.91692869,62428.0,62427.0,0.080421]
[1728079193253,4.96511401,62428.0,62427.0,0.080421]
[1728079194348,4.99023536,62428.0,62427.0,0.080421]
[1728079195259,4.13323536,62428.0,62427.0,0.080421]
[1728079195729,4.10811401,62428.0,62427.0,0.080421]
[1728079198997,4.13323528,62428.0,62427.0,0.080421]
[1728079200314,1.62421932,62428.0,62427.0,0.080421]
[1728079200531,1.62421932,62428.0,62427.0,0.176721]
[1728079200532,0.48823528,62428.0,62427.0,0.176721]
[1728079200790,0.44004996,62428.0,62427.0,0.176721]
[1728079201425,0.29378764,62428.0,62427.0,0.176721]
[1728079201677,0.3898036,62428.0,62427.0,0.176721]
[1728079202576,0.55184158,62428.0,62427.0,0.176721]
[1728079208188,0.55180648,62428.0,62427.0,0.176721]
[1728079208872,0.55180648,62428.0,62427.0,0.080421]
[1728079209523,0.60204815,62428.0,62427.0,0.080421]
[1728079210599,0.44004527,62428.0,62427.0,0.080421]
[1728079213204,0.41492555,62428.0,62427.0,0.080421]
[1728079214742,0.31890959,62428.0,62427.0,0.178821]
[1728079216432,0.34402867,62428.0,62427.0,0.178821]
[1728079219790,0.31890959,62428.0,62427.0,0.178821]
[1728079221803,0.31780431,62428.0,62427.0,0.178821]
[1728079222919,0.41382027,62428.0,62427.0,0.178821]
[1728079228385,0.31780431,62428.0,62427.0,0.178821]
[1728079233124,0.32792214,62428.0,62427.0,0.178821]
[1728079233359,0.32892214,62428.0,62427.0,0.178821]
[1728079233882,0.33092214,62428.0,62427.0,0.178821]
[1728079234374,0.32892214,62428.0,62427.0,0.178821]
[1728079234622,0.32992214,62428.0,62427.0,0.178821]
[1728079234859,0.30480431,62428.0,62427.0,0.178821]
[1728079237438,0.40082027,62428.0,62427.0,0.178821]
[1728079237872,0.42593814,62428.0,62427.0,0.178821]
[1728079239454,0.40082027,62428.0,62427.0,0.178821]
[1728079240883,0.40082027,62428.0,62427.0,0.080421]
[1728079241534,0.40082027,62428.0,62427.0,0.000821]
[1728079242225,0.54543388,62428.0,62427.0,0.000821]
[1728079242432,0.42666685,62428.0,62427.0,0.000821]
[1728079242664,0.57055352,62428.0,62427.0,0.000821]
[1728079243560,0.47453756,62428.0,62427.0,0.000821]
[1728079243853,0.54543388,62428.0,62427.0,0.081421]
[1728079245479,0.40154721,62428.0,62427.0,0.081421]
[1728079245717,0.54542004,62428.0,62427.0,0.081421]
[1728079245946,0.40154721,62428.0,62427.0,0.081421]
[1728079246141,0.54542402,62428.0,62427.0,0.081421]
[1728079246630,0.40154721,62428.0,62427.0,0.081421]
[1728079247299,0.40318921,62428.0,62427.0,0.081421]
[1728079248339,0.42830852,62428.0,62427.0,0.081421]
[1728079253975,0.42797676,62428.0,62427.0,0.081421]
[1728079265893,0.42797676,62428.0,62427.0,0.000821]
[1728079266103,0.52867387,62428.0,62427.0,0.000821]
[1728079266316,2.23987676,62428.0,62427.0,0.000821]
[1728079266525,2.24167387,62428.0,62427.0,0.000821]
[1728079266732,2.23987676,62428.0,62427.0,0.000821]
[1728079271203,2.1438608,62428.0,62427.0,0.000821]
[1728079271437,0.3319608,62428.0,62427.0,0.000821]
[1728079271672,0.30683885,62428.0,62427.0,0.000821]
[1728079283722,0.30583885,62428.0,62427.0,0.000821]
[1728079284261,0.30483885,62428.0,62427.0,0.000821]
[1728079289834,0.40333885,62428.0,62427.0,0.000821]
[1728079290996,0.160207,62419.0,62418.0,0.07260879]
[1728079291573,0.17915126,62419.0,62418.0,0.07260879]
[1728079291755,0.20427135,62419.0,62418.0,0.07260879]
[1728079292634,0.20527135,62419.0,62418.0,0.07481168]
[1728079292873,0.20627135,62419.0,62418.0,0.07481168]
[1728079303022,0.32626741,62419.0,62418.0,0.07481168]
[1728079303611,0.32626741,62419.0,62418.0,0.07460879]
[1728079304666,0.32626741,62419.0,62418.0,0.07481168]
[1728079304859,0.32626741,62419.0,62418.0,0.07460879]
[1728079305477,0.20627135,62419.0,62418.0,0.07542979]
[1728079306543,0.3262748,62419.0,62418.0,0.07542979]
[1728079307600,0.20627135,62419.0,62418.0,0.07542979]
[1728079308216,0.32627467,62419.0,62418.0,0.07542979]
[1728079308455,0.32627643,62419.0,62418.0,0.07542979]
[1728079308864,0.32378147,62419.0,62418.0,0.07542979]
[1728079309276,0.20377639,62419.0,62418.0,0.07542979]
[1728079309717,0.32378595,62419.0,62418.0,0.07542979]
[1728079309965,0.20377639,62419.0,62418.0,0.07542979]
[1728079310410,0.32378861,62419.0,62418.0,0.07542979]
[1728079310618,0.20377639,62419.0,62418.0,0.07542979]
[1728079311291,0.32379254,62419.0,62418.0,0.07542979]
[1728079311754,0.20377639,62419.0,62418.0,0.07542979]
[1728079312228,0.20377639,62419.0,62418.0,0.002821]
[1728079316891,0.29979235,62419.0,62418.0,0.00302389]
[1728079317319,0.20541839,62419.0,62418.0,0.00302389]
[1728079319993,0.20537444,62419.0,62418.0,0.00302389]
[1728079329681,0.20537444,62419.0,62418.0,0.002821]
[1728079329682,0.30537444,62419.0,62418.0,0.002821]
[1728079330339,0.30437444,62419.0,62418.0,0.000821]
[1728079330561,0.30337444,62419.0,62418.0,0.000821]
[1728079330777,0.30537444,62419.0,62418.0,0.002821]
[1728079332372,0.33049706,62419.0,62418.0,0.002821]
[1728079335218,0.33049706,62419.0,62418.0,0.00302389]
[1728079336859,0.06594069,62419.0,62418.0,0.33393389]
[1728079337117,0.11172688,62419.0,62418.0,0.33393389]
[1728079337381,0.0960289,62423.0,62422.0,0.24190189]
[1728079337601,0.001642,62428.0,62427.0,0.17090289]
[1728079337849,0.001642,62428.0,62427.0,0.42710585]
[1728079338601,0.04800369,62433.0,62432.0,0.23987689]
[1728079338844,0.04800369,62433.0,62432.0,0.33589285]
[1728079339078,0.04964569,62438.0,62437.0,0.23986389]
[1728079339272,0.001642,62438.0,62437.0,0.07970289]
[1728079339540,0.001642,62438.0,62420.0,0.000998]
[1728079339541,0.320333,62435.0,62429.0,0.0795]
[1728079339767,0.48053,62431.0,62430.0,0.24035958]
[1728079340035,0.57654596,62431.0,62430.0,0.24035958]
[1728079340267,0.160202,62421.0,62420.0,0.24135758]
[1728079340493,0.25621796,62421.0,62420.0,0.24135758]
[1728079340723,0.25621796,62421.0,62420.0,0.24035958]
[1728079340950,0.160207,62419.0,62418.0,0.000821]
[1728079341625,0.18532659,62419.0,62418.0,0.000821]
[1728079341858,0.18532659,62419.0,62418.0,0.30803882]
[1728079341859,0.02511959,62419.0,62418.0,0.30803882]
[1728079342085,0.320346,62433.0,62424.0,0.00020289]
[1728079342086,0.160192,62425.0,62424.0,0.00020289]
[1728079342301,0.320375,62427.0,62418.0,0.000821]
[1728079342302,0.161202,62421.0,62420.0,0.001]
[1728079342784,0.161202,62421.0,62420.0,0.007]
[1728079343017,0.3204,62422.0,62418.0,0.00202389]
[1728079343236,0.160207,62419.0,62418.0,0.00202389]
[1728079343473,0.160207,62419.0,62418.0,0.00102389]
[1728079344814,0.321409,62421.0,62420.0,0.239705]
[1728079344815,0.001,62421.0,62420.0,0.239705]
[1728079345133,0.001,62421.0,62420.0,0.330905]
[1728079345264,0.001,62421.0,62420.0,0.33110789]
[1728079345736,0.04793505,62432.0,62431.0,0.00020289]
[1728079345960,0.0974937,62438.0,62436.0,0.00020289]
[1728079346173,0.160161,62437.0,62436.0,0.00020289]
[1728079346451,0.4178107,62438.0,62434.0,0.00020289]
[1728079346660,0.4178107,62438.0,62430.0,0.00020289]
[1728079346661,0.160176,62431.0,62430.0,0.00020289]
[1728079349128,0.161176,62431.0,62430.0,0.00720289]
[1728079349814,0.001,62431.0,62430.0,0.39388971]
[1728079350037,0.001,62431.0,62430.0,0.25388189]
[1728079350277,0.002,62431.0,62430.0,0.25388189]
[1728079350700,0.002,62431.0,62430.0,0.73441189]
[1728079350889,0.001,62431.0,62430.0,0.72741189]
[1728079351092,0.04792052,62435.0,62434.0,0.160169]
[1728079351328,0.04792052,62435.0,62434.0,0.640679]
[1728079351584,0.04792052,62436.0,62435.0,0.160166]
[1728079352000,0.04792052,62436.0,62435.0,0.640666]
[1728079352862,0.04892052,62436.0,62435.0,0.650666]
[1728079353665,0.001,62436.0,62435.0,0.650666]
[1728079354357,0.001,62436.0,62435.0,0.65086889]
[1728079354589,0.002,62436.0,62435.0,0.66486889]
[1728079357898,0.002,62436.0,62435.0,0.50470289]
[1728079358120,0.162164,62436.0,62435.0,0.50470289]
[1728079358987,0.161164,62436.0,62435.0,0.49070289]
[1728079359210,0.162164,62436.0,62435.0,0.49970289]
[1728079359425,0.161164,62436.0,62435.0,0.48970289]
[1728079359877,0.001,62436.0,62435.0,0.64986889]
[1728079360099,0.04792052,62437.0,62436.0,0.00020289]
[1728079360333,0.18691324,62438.0,62436.0,0.00020289]
[1728079360334,0.20972252,62438.0,62436.0,0.00020289]
[1728079360788,0.04956252,62438.0,62436.0,0.00020289]
[1728079361021,0.20972252,62438.0,62436.0,0.00020289]
[1728079361455,0.001,62437.0,62436.0,0.00920289]
[1728079361662,0.161161,62437.0,62436.0,0.00920289]
[1728079361871,0.001,62437.0,62436.0,0.01620289]
[1728079362092,0.161161,62437.0,62436.0,0.01620289]
[1728079362275,0.161161,62437.0,62436.0,0.16936689]
[1728079362276,0.001,62437.0,62436.0,0.16936689]
[1728079362478,0.001,62437.0,62436.0,0.73045689]
[1728079362714,0.001,62437.0,62436.0,0.73445689]
[1728079362916,0.001,62437.0,62436.0,0.72545689]
[1728079363133,0.001642,62438.0,62437.0,0.00020289]
[1728079363343,0.002642,62438.0,62437.0,0.48068289]
[1728079363803,0.002642,62438.0,62437.0,0.64084389]
[1728079364269,0.001642,62438.0,62437.0,0.64084389]
[1728079364695,0.002642,62438.0,62437.0,0.64984389]
[1728079365105,0.003642,62438.0,62437.0,0.66084389]
[1728079380676,0.26017414,62438.0,62437.0,0.50048]
[1728079381109,0.003642,62438.0,62437.0,0.67565703]
[1728079381318,0.003642,62438.0,62437.0,0.73944389]
[1728079381564,0.002642,62438.0,62437.0,0.72844389]
[1728079381779,0.003642,62438.0,62437.0,0.73744389]
[1728079382424,0.002642,62438.0,62437.0,0.72844389]
[1728079382638,0.003642,62438.0,62437.0,0.73644389]
[1728079382858,0.003642,62438.0,62437.0,0.72844389]
[1728079383391,0.003642,62438.0,62437.0,0.49768289]
[1728079383392,0.1648,62438.0,62437.0,0.49768289]
[1728079383628,0.1638,62438.0,62437.0,0.48848]
[1728079383819,0.1638,62438.0,62437.0,0.49948]
[1728079383820,0.004642,62438.0,62437.0,0.49948]
[1728079383962,0.004642,62438.0,62437.0,0.659641]
[1728079384192,0.004642,62438.0,62437.0,0.65984389]
[1728079400713,0.004642,62438.0,62437.0,0.74194389]
[1728079400974,0.004642,62438.0,62437.0,0.76108354]
[1728079401245,0.004642,62438.0,62437.0,0.75908354]
[1728079401502,0.004642,62438.0,62437.0,0.76108354]
[1728079401714,0.00457794,62438.0,62437.0,0.9059849]
[1728079401899,0.00357794,62438.0,62437.0,0.8949849]
[1728079402127,0.00257794,62438.0,62437.0,0.9009849]
[1728079402373,0.00257794,62438.0,62437.0,0.88384525]
[1728079402587,0.00257794,62438.0,62437.0,0.89495366]
[1728079402806,0.00257794,62438.0,62437.0,0.89494703]
[1728079403015,0.00357794,62438.0,62437.0,0.90894703]
[1728079404960,0.00357794,62438.0,62437.0,0.74494389]
[1728079405431,0.00357794,62438.0,62437.0,0.50268289]
[1728079405892,0.00257794,62438.0,62437.0,0.64884389]
[1728079406165,0.00157794,62438.0,62437.0,0.64084389]
[1728079406407,0.00157794,62438.0,62437.0,0.49448]
[1728079406408,0.16173594,62438.0,62437.0,0.49448]
[1728079406619,0.16173594,62438.0,62437.0,0.50868289]
[1728079406829,0.00157794,62438.0,62437.0,0.49468289]
[1728079408163,0.00157794,62438.0,62437.0,0.65484389]
[1728079408626,0.00157794,62438.0,62437.0,0.64084389]
[1728079408842,0.00157794,62438.0,62437.0,0.65484389]
[1728079409085,0.00257794,62438.0,62437.0,0.66884389]
[1728079409300,0.00157794,62438.0,62437.0,0.49468289]
[1728079409507,0.00157794,62438.0,62437.0,0.50868289]
[1728079409710,0.00257794,62438.0,62437.0,0.50868289]
[1728079411174,0.00257794,62438.0,62437.0,0.66884389]
[1728079411413,0.00257794,62438.0,62437.0,0.74934389]
[1728079414036,0.00257794,62438.0,62437.0,0.50868289]
[1728079415256,0.00257794,62438.0,62437.0,0.66884389]
[1728079415709,0.00257794,62438.0,62437.0,0.50868289]
[1728079417811,0.00257794,62438.0,62437.0,0.66884389]
[1728079418047,0.16273594,62438.0,62437.0,0.50868289]
[1728079418286,0.00257794,62438.0,62437.0,0.50868289]
[1728079418955,0.00257794,62438.0,62437.0,0.66884389]
[1728079421250,0.00257794,62438.0,62437.0,0.74934389]
[1728079421669,0.00257794,62438.0,62437.0,0.76637155]
[1728079423236,0.00257794,62438.0,62437.0,0.76655918]
[1728079423693,0.00257794,62438.0,62437.0,0.76738018]
[1728079431639,0.00257794,62438.0,62437.0,0.93256689]
[1728079431883,0.00257794,62438.0,62437.0,0.96056689]
[1728079432104,0.00257794,62438.0,62437.0,1.03269524]
[1728079432347,0.00257794,62438.0,62437.0,0.96056689]
[1728079432577,0.00257794,62438.0,62437.0,1.01866118]
[1728079433089,0.00257794,62438.0,62437.0,0.75838018]
[1728079433612,0.00257794,62438.0,62437.0,0.94456689]
[1728079433866,0.00257794,62438.0,62437.0,0.92156689]
[1728079433867,0.00157794,62438.0,62437.0,0.92156689]
[1728079434133,0.00157794,62438.0,62437.0,1.00766118]
[1728079434376,0.00157794,62438.0,62437.0,0.92156689]
[1728079434621,0.00157794,62438.0,62437.0,0.98361939]
[1728079434861,0.00157794,62438.0,62437.0,0.96961939]
[1728079435109,0.00157794,62438.0,62437.0,0.95561939]
[1728079435347,0.00157794,62438.0,62437.0,0.98361939]
[1728079435594,0.00157794,62438.0,62437.0,0.96961939]
[1728079435841,0.00157794,62438.0,62437.0,0.98361939]
[1728079436089,0.00157794,62438.0,62437.0,0.93556689]
[1728079436570,0.00157794,62438.0,62437.0,0.77238018]
[1728079437279,0.00157794,62438.0,62437.0,0.74438018]
[1728079437504,0.00157794,62438.0,62437.0,0.77238018]
[1728079439912,0.00157794,62438.0,62437.0,0.76738018]
[1728079440144,0.00157794,62438.0,62437.0,0.77238018]
[1728079442250,0.00157794,62438.0,62437.0,0.75516489]
[1728079442459,0.00157794,62438.0,62437.0,0.77248121]
[1728079442668,0.00157794,62438.0,62437.0,0.75516489]
[1728079443303,0.00157794,62438.0,62437.0,0.77248172]
[1728079443531,0.00157794,62438.0,62437.0,1.17602801]
[1728079443745,0.00157794,62438.0,62437.0,0.77248172]
[1728079445207,0.00157794,62438.0,62437.0,1.04946843]
[1728079445634,0.00157794,62438.0,62437.0,1.05146843]
[1728079446560,0.00157794,62438.0,62437.0,1.22046843]
[1728079447471,0.001642,62444.0,62443.0,0.16534889]
[1728079447706,0.001642,62444.0,62443.0,1.07184787]
[1728079447945,0.001642,62444.0,62443.0,1.24084787]
[1728079448595,0.001642,62444.0,62443.0,1.24284787]
[1728079448808,0.001642,62444.0,62443.0,1.05653104]
[1728079449013,0.001642,62444.0,62443.0,1.08779311]
[1728079449649,0.001642,62444.0,62443.0,1.10179311]
[1728079450090,0.001642,62444.0,62443.0,1.08779311]
[1728079450305,0.001642,62444.0,62443.0,1.10179311]
[1728079452306,0.001642,62444.0,62443.0,1.0910936]
[1728079452513,0.001642,62444.0,62443.0,1.1084453]
[1728079452931,0.001642,62444.0,62443.0,1.18042687]
[1728079453402,0.001642,62444.0,62443.0,1.1564141]
[1728079454042,0.001642,62444.0,62443.0,1.1084453]
[1728079454252,0.001642,62444.0,62443.0,1.1564141]
[1728079454506,0.001642,62444.0,62443.0,1.2527141]
[1728079455416,0.001642,62444.0,62443.0,1.14785154]
[1728079455629,0.001642,62444.0,62443.0,1.05953104]
[1728079455850,0.001642,62444.0,62443.0,1.07913714]
[1728079456308,0.001642,62444.0,62443.0,1.07713714]
[1728079456535,0.001642,62444.0,62443.0,0.7618921]
[1728079456756,0.001642,62444.0,62443.0,0.66878889]
[1728079457193,0.092642,62444.0,62443.0,0.654586]
[1728079457403,0.092642,62444.0,62443.0,0.64078889]
[1728079457617,0.092642,62444.0,62443.0,0.66878889]
[1728079458059,0.092642,62444.0,62443.0,0.65478889]
[1728079458275,0.092642,62444.0,62443.0,0.66878889]
[1728079458486,0.092642,62444.0,62443.0,0.65478889]
[1728079458697,0.092642,62444.0,62443.0,0.66878889]
[1728079458936,0.092642,62444.0,62443.0,0.668586]
[1728079459156,0.092642,62444.0,62443.0,0.65478889]
[1728079459612,0.092642,62444.0,62443.0,0.64078889]
[1728079459845,0.092642,62444.0,62443.0,0.65478889]
[1728079460267,0.092642,62444.0,62443.0,0.64078889]
[1728079460485,0.092642,62444.0,62443.0,0.65478889]
[1728079460927,0.092642,62444.0,62443.0,0.66878889]
[1728079464265,0.001642,62444.0,62443.0,0.66878889]
[1728079465265,0.001642,62444.0,62443.0,0.65478889]
[1728079465520,0.001642,62444.0,62443.0,0.64078889]
[1728079465770,0.001642,62444.0,62443.0,0.65478889]
[1728079466013,0.001642,62444.0,62443.0,0.64078889]
[1728079466272,0.001642,62444.0,62443.0,0.65478889]
[1728079466721,0.001642,62444.0,62443.0,0.64078889]
[1728079467235,0.001642,62444.0,62443.0,0.65478889]
[1728079467441,0.001642,62444.0,62443.0,0.66878889]
[1728079467653,0.001642,62444.0,62443.0,0.65478889]
[1728079468081,0.001642,62444.0,62443.0,0.66878889]
[1728079472826,0.093342,62444.0,62443.0,0.66878889]
[1728079473923,0.093342,62444.0,62443.0,0.65478889]
[1728079474124,0.093342,62444.0,62443.0,0.66878889]
[1728079474427,0.093342,62444.0,62443.0,0.65478889]
[1728079474886,0.093342,62444.0,62443.0,0.66878889]
[1728079475398,0.093342,62444.0,62443.0,0.49464289]
[1728079475668,0.093342,62444.0,62443.0,0.50864289]
[1728079475914,0.093342,62444.0,62443.0,0.49444]
[1728079475915,0.253485,62444.0,62443.0,0.49444]
[1728079476131,0.253485,62444.0,62443.0,0.49464289]
[1728079476132,0.336585,62444.0,62443.0,0.49464289]
[1728079476372,0.336585,62444.0,62443.0,0.50864289]
[1728079476598,0.336585,62444.0,62443.0,0.50844]
[1728079476846,0.336585,62444.0,62443.0,0.49444]
[1728079477118,0.336585,62444.0,62443.0,0.50844]
[1728079477290,0.36169489,62444.0,62443.0,0.50844]
[1728079477495,0.36169489,62444.0,62443.0,0.49444]
[1728079477712,0.36169489,62444.0,62443.0,0.50644]
[1728079477925,0.46169489,62444.0,62443.0,0.50644]
[1728079478141,0.46169489,62444.0,62443.0,0.51244]
[1728079478392,0.46169489,62444.0,62443.0,0.48044]
[1728079478603,0.46169489,62444.0,62443.0,0.49144]
[1728079479240,0.436585,62444.0,62443.0,0.49144]
[1728079479904,0.436585,62444.0,62443.0,0.48544]
[1728079480341,0.436585,62444.0,62443.0,0.48744]
[1728079480596,0.436585,62444.0,62443.0,0.48544]
[1728079480838,0.436585,62444.0,62443.0,0.48744]
[1728079481288,0.436585,62444.0,62443.0,0.48244]
[1728079481544,0.46169602,62444.0,62443.0,0.48344]
[1728079482265,0.61863367,62444.0,62443.0,0.28244]
[1728079482269,1.29499602,62444.0,62443.0,0.08244]
[1728079482520,1.34290892,62444.0,62443.0,0.05324]
[1728079482795,1.41260692,62444.0,62443.0,0.05324]
[1728079483071,0.40880555,62440.0,62439.0,0.00082]
[1728079483310,5.45880555,62440.0,62439.0,0.00082]
[1728079483588,5.60041838,62440.0,62439.0,0.00082]
[1728079483817,5.63041838,62440.0,62439.0,0.00082]
[1728079484293,2.36550548,62440.0,62439.0,0.00082]
[1728079484536,2.34158898,62440.0,62439.0,0.00082]
[1728079485041,2.27000844,62440.0,62439.0,0.00082]
[1728079485293,2.27300844,62440.0,62439.0,0.00082]
[1728079485539,2.31871038,62440.0,62439.0,0.00082]
[1728079485776,2.296124,62440.0,62439.0,0.00082]
[1728079486244,2.34382569,62440.0,62439.0,0.00082]
[1728079486479,2.298124,62440.0,62439.0,0.00082]
[1728079486715,2.300124,62440.0,62439.0,0.00082]
[1728079489171,2.248124,62440.0,62439.0,0.00082]
[1728079489406,2.41131071,62440.0,62439.0,0.00082]
[1728079492041,5.68031071,62440.0,62439.0,0.00082]
[1728079492520,4.84631071,62440.0,62439.0,0.00082]
[1728079492925,4.233124,62440.0,62439.0,0.00082]
[1728079493126,4.167124,62440.0,62439.0,0.00082]
[1728079493767,3.545124,62440.0,62439.0,0.00082]
[1728079497448,3.52000844,62440.0,62439.0,0.00082]
[1728079499301,3.52180555,62440.0,62439.0,0.00082]
[1728079500462,3.71010887,62440.0,62439.0,0.00082]
[1728079500906,3.54692216,62440.0,62439.0,0.00082]
[1728079501130,3.51512505,62440.0,62439.0,0.00082]
[1728079501403,0.19026961,62440.0,62439.0,0.00082]
[1728079502572,0.03011661,62440.0,62439.0,0.333476]
[1728079502843,0.03011661,62440.0,62439.0,0.33367889]
[1728079503273,0.02711661,62440.0,62439.0,0.33367889]
[1728079503500,0.001642,62443.0,62442.0,0.33285089]
[1728079503735,0.001642,62443.0,62442.0,0.17270289]
[1728079504202,0.001642,62443.0,62442.0,0.33285089]
[1728079505216,0.001642,62443.0,62442.0,0.81829089]
[1728079505458,0.001642,62443.0,62442.0,0.82929089]
[1728079506356,0.001642,62443.0,62442.0,0.82429089]
[1728079506811,0.001642,62443.0,62442.0,0.83629089]
[1728079507038,0.001642,62443.0,62442.0,0.67614289]
[1728079507260,0.161788,62443.0,62442.0,0.67614289]
[1728079507696,0.0267513,62443.0,62442.0,0.67614289]
[1728079509703,0.1868973,62443.0,62442.0,0.67614289]
[1728079511836,0.1868973,62443.0,62442.0,0.59874]
[1728079512279,0.2868973,62443.0,62442.0,0.59874]
[1728079512496,0.261788,62443.0,62442.0,0.59874]
[1728079512949,0.261788,62443.0,62442.0,0.48044]
[1728079513159,0.261788,62443.0,62442.0,0.48544]
[1728079513380,0.26358511,62443.0,62442.0,0.49044]
[1728079513803,0.261788,62443.0,62442.0,0.49044]